Cogmind - Beta 15 @@@ ROGUE MODE // 2025.09.29 @ 14:41:16 // Winter2022/Polymind Player: Figgis Result: Self-destructed Performance ------------- Evolutions (3) 1500 Regions Visited (8) 1600 Robots Destroyed (31) 155 Value Destroyed (995) 995 Prototype IDs (3) 60 Alien Tech Used (0) 0 Bonus (3720) 3720 TOTAL SCORE: 7900 Bonus ------- Polymind Skill 3520 Pacifist 200 Cogmind --------- Core Integrity 538/700 Matter 0/0 Energy 234/235 System Corruption 0% Temperature Cool (11) Movement Hovering (80) Location -7/Factory Parts ------- > --- POWER (1) -------- Heavy Deuterium Engine > --- PROPULSION (1) --- Combat Antigrav System > --- UTILITY (22) ----- Advanced Launcher Guidance Computer Experimental Core Analyzer Improved Armor Integrity Analyzer EX Chip 1 EX Chip 1 EX Chip 1 EX Chip 1 EX Chip 1 EX Chip 1 EX Chip 1 EX Chip 1 EX Chip 1 EX Chip 1 EX Chip 2 EX Chip 2 EX Chip 2 EX Chip 2 EX Chip 2 EX Chip 2 EX Chip 2 > --- WEAPON (2) ------- (None) > --- INVENTORY (2) ---- (None) Peak State ------------ > --- POWER ------------ Heavy Deuterium Engine > --- PROPULSION ------- Combat Antigrav System > --- UTILITY ---------- Advanced Launcher Guidance Computer Improved Target Analyzer Experimental Core Analyzer Improved Armor Integrity Analyzer EX Chip 1 EX Chip 1 EX Chip 1 EX Chip 1 EX Chip 1 EX Chip 1 EX Chip 1 EX Chip 1 EX Chip 1 EX Chip 1 EX Chip 2 EX Chip 2 EX Chip 2 EX Chip 2 EX Chip 2 EX Chip 2 EX Chip 2 EX Chip 2 > --- WEAPON ----------- AWS/EX-DEC > --- INVENTORY -------- Deploy-a-Sentry [Rating: 99] Favorites ----------- Power Heavy Deuterium Engine Engine Heavy Deuterium Engine Propulsion Combat Antigrav System Leg Carbon-fiber Leg Hover Unit Combat Antigrav System Flight Unit Flight Unit Utility EX Chip 1 Device Improved Heat Sink Processor Advanced Launcher Guidance Computer Hackware EX Chip 1 Weapon AWS/EX-DEC Energy Gun AWS/EX-DEC Ballistic Gun Assembled Rifle Build | -11 -10 -10 -9 -9 -9 -8 -8 -7 ------- Run | Yrd Mat Min Mat Min Exi Min Mat Fac Slots Evolved . | . . . . . . . . . Power . | . . . . . . . . . Propulsion . | . . . . . . . . . Utility . | . . . . . . . . . Weapon . | . . . . . . . . . Parts Attached . | . . . . . . . . . Power . | . . . . . . . . . Engine . | . . . . . . . . . Core . | . . . . . . . . . Reactor . | . . . . . . . . . Propulsion . | . . . . . . . . . Treads . | . . . . . . . . . Leg . | . . . . . . . . . Wheel . | . . . . . . . . . Hover . | . . . . . . . . . Flight . | . . . . . . . . . Utility . | . . . . . . . . . Device . | . . . . . . . . . Storage . | . . . . . . . . . Processor . | . . . . . . . . . Hackware . | . . . . . . . . . Protection . | . . . . . . . . . Artifact . | . . . . . . . . . Weapon . | . . . . . . . . . Energy Gun . | . . . . . . . . . Energy Cannon . | . . . . . . . . . Ballistic Gun . | . . . . . . . . . Ballistic Cannon . | . . . . . . . . . Launcher . | . . . . . . . . . Special Weapon . | . . . . . . . . . Impact Weapon . | . . . . . . . . . Slashing Weapon . | . . . . . . . . . Piercing Weapon . | . . . . . . . . . Special Melee Weapon . | . . . . . . . . . Unidentified Prototypes . | . . . . . . . . . Parts Lost 7 | . . . 4 . . . . 3 Power 1 | . . . 1 . . . . . Propulsion 2 | . . . 2 . . . . . Utility 2 | . . . . . . . . 2 Weapon 2 | . . . 1 . . . . 1 Highest Loss Streak 3 | . . . 3 . . . . 2 To Critical Strikes . | . . . . . . . . . Average Backups . | . . . . . . . . . Power . | . . . . . . . . . Propulsion . | . . . . . . . . . Utility . | . . . . . . . . . Weapon . | . . . . . . . . . Tool/Special . | . . . . . . . . . Unused Backups . | . . . . . . . . . Power . | . . . . . . . . . Propulsion . | . . . . . . . . . Utility . | . . . . . . . . . Weapon . | . . . . . . . . . Tool/Special . | . . . . . . . . . Average Slot Usage (%) 79 | . . 16 89 100 16 96 96 93 Engine 3 | . . 2 8 2 . 3 3 3 Leg 5 | . . 5 31 . . . . . Hover 6 | . . . . 45 . 3 3 3 Device 6 | . . 5 33 . . . . . Processor 7 | . . . . . 2 15 15 14 Hackware 36 | . . . . . 12 69 69 67 Energy Gun 4 | . . 2 16 . . 3 3 2 Ballistic Gun 5 | . . . . 47 . . . . Peak Build Rating 99 | . . 22 22 4 99 99 99 99 Average Rating 56 | . . 2 18 3 20 99 99 95 On Entrance 35 | . . . 22 4 . 99 99 99 Naked Turns 248 | . 76 41 . 3 128 . . . Heaviest Build 21 | . . 16 16 4 21 21 21 21 Greatest Support 30 | 3 3 30 30 8 21 21 21 21 Greatest Overweight (x) . | . . . . . . . . . Average Overweight (x) . | . . . . . . . . . Largest Inventory Capacity 2 | . . 1 1 1 2 2 2 2 Average Capacity 1 | . . . . . . 2 2 2 Most Carried 1 | . . . . . 1 1 1 1 Average Carried . | . . . . . . 1 1 . Final Capacity 2 | . . 1 . . 2 2 2 2 Final Carried 1 | . . . . . 1 1 1 . Class Distribution -------------------- 54% | Assembler 18% | Grunt 15% | Cogmind 11% | Troll Dominant Class ---------------- Cogmind | -10/Materials Cogmind | -10/Mines Grunt | -9/Materials Troll | -9/Mines Cogmind | -9/Exiles Assembler | -8/Mines Assembler | -8/Materials Assembler | -7/Factory Resources | -11 -10 -10 -9 -9 -9 -8 -8 -7 ----------- Run | Yrd Mat Min Mat Min Exi Min Mat Fac Matter Collected 72 | . . . . 72 . . . . Remotely . | . . . . . . . . . Salvage Created 962 | . . . 241 51 . 216 210 244 Parts 75 | . . . 27 10 . 8 24 6 Haulers Intercepted . | . . . . . . . . . Recyclers Shooed 1 | . . . 1 . . . . . Parts Field Recycled . | . . . . . . . . . Retrieved Matter . | . . . . . . . . . Parts Self-Destructed . | . . . . . . . . . Prevented . | . . . . . . . . . Kills | -11 -10 -10 -9 -9 -9 -8 -8 -7 ------- Run | Yrd Mat Min Mat Min Exi Min Mat Fac Combat Hostiles Destroyed 29 | . . . 11 3 . 3 10 2 Guns 27 | . . . 11 3 . 3 9 1 Classes Destroyed 6 | . . . 5 1 . . . . Watcher 2 | . . . 1 . . . . 1 Swarmer 11 | . . . 5 2 . . 4 . Grunt 10 | . . . 3 . . 3 4 . Brawler 1 | . . . 1 . . . . . Sentry 6 | . . . 2 . . . 2 2 Demolisher 1 | . . . . 1 . . . . Best Kill Streak 4 | . . . 3 1 . 3 4 1 Combat Bots Only 4 | . . . 3 1 . 3 4 1 Max Kills in Single Turn 1 | . . . 1 1 . 1 1 1 Gunslinging . | . . . . . . . . . Exploded . | . . . . . . . . . Melee . | . . . . . . . . . Uniques/NPCs Destroyed . | . . . . . . . . . Combat | -11 -10 -10 -9 -9 -9 -8 -8 -7 -------- Run | Yrd Mat Min Mat Min Exi Min Mat Fac Hostile Shots Fired 207 | . . . 85 10 . 7 17 88 Missed 82 | . . . 23 6 . 2 6 45 Hits 125 | . . . 62 4 . 5 11 43 Melee 1 | . . . . 1 . . . . Projectile 124 | . . . 62 3 . 5 11 43 Critical Strikes 2 | . . . . . . 1 . 1 Damage Taken 1392 | . . . 666 91 . 82 172 381 Core 503 | . . . 236 14 . 29 62 162 Absorbed by Shields 14 | . . . . . . . . 14 Regen/Repaired (Parts) 21 | . . . . . . . . 21 Core Remaining (%) 79 | 100 . 100 . . . 30 88 . Volleys Fired 73 | . . . 51 22 . . . . Largest 1 | . . . 1 1 . . . . Hottest 75 | . . . 75 20 . . . . Shots Fired 126 | . . . 51 22 . 12 25 16 Gun 126 | . . . 51 22 . 12 25 16 Cannon . | . . . . . . . . . Launcher . | . . . . . . . . . Special . | . . . . . . . . . Kinetic 22 | . . . . 22 . . . . Thermal 51 | . . . 51 . . . . . Explosive . | . . . . . . . . . Electromagnetic 53 | . . . . . . 12 25 16 Robot Hit Streak 15 | . . . 13 14 . 15 14 13 Robot Miss Streak 5 | . . . 5 1 . 3 3 2 Penetration Max . | . . . . . . . . . Secondary Targets . | . . . . . . . . . Autonomous 53 | . . . . . . 12 25 16 Shots Hit Robots 101 | . . . 32 20 . 11 24 14 Core Hits 55 | . . . 12 11 . 8 16 8 Critical Kills 1 | . . . . 1 . . . . Critical Parts Destroyed . | . . . . . . . . . Critical Strikes 10 | . . . . 1 . 2 6 1 Destroy 1 | . . . . 1 . . . . Corrupt 9 | . . . . . . 2 6 1 Melee Attacks . | . . . . . . . . . Impact . | . . . . . . . . . Slashing . | . . . . . . . . . Piercing . | . . . . . . . . . Sneak Attacks . | . . . . . . . . . Combat Hostiles . | . . . . . . . . . Follow-up Attacks . | . . . . . . . . . Damage Inflicted 2211 | . . . 718 262 . 255 647 329 Guns 2206 | . . . 713 262 . 255 647 329 Cannons . | . . . . . . . . . Explosions . | . . . . . . . . . Melee . | . . . . . . . . . Ramming 5 | . . . 5 . . . . . Kinetic 262 | . . . . 262 . . . . Thermal 713 | . . . 713 . . . . . Explosive . | . . . . . . . . . Electromagnetic 1231 | . . . . . . 255 647 329 Impact . | . . . . . . . . . Slashing . | . . . . . . . . . Piercing . | . . . . . . . . . Highest Corruption . | . . . . . . . . . Average Corruption . | . . . . . . . . . Corruption Purged . | . . . . . . . . . Corruption Blocked . | . . . . . . . . . Overload Shots . | . . . . . . . . . Overflow Damage . | . . . . . . . . . Projectiles . | . . . . . . . . . Explosions . | . . . . . . . . . Melee . | . . . . . . . . . Knockbacks . | . . . . . . . . . Impact . | . . . . . . . . . Kinetic . | . . . . . . . . . Secondary . | . . . . . . . . . Self-Inflicted Damage . | . . . . . . . . . Shots . | . . . . . . . . . Rammed . | . . . . . . . . . Targets Rammed 2 | . . . 2 . . . . . Kicked 2 | . . . 2 . . . . . Crushed . | . . . . . . . . . Highest Temperature 31 | . . . 2 . . 31 13 8 Average Temperature 12 | . . . 2 . . 15 9 4 Received Heat Transfer 336 | . . . 156 . . 63 54 63 Siege Activations . | . . . . . . . . . Martial Activations . | . . . . . . . . . Shielding Activations . | . . . . . . . . . Robots Disrupted . | . . . . . . . . . Combat Hostiles . | . . . . . . . . . Robots Corrupted 2 | . . . . . . . 1 1 Combat Hostiles 2 | . . . . . . . 1 1 Parts Fried 8 | . . . . . . 1 2 5 Impact Corruptions . | . . . . . . . . . Robots Melted . | . . . . . . . . . Combat Hostiles . | . . . . . . . . . Parts Melted 3 | . . . 3 . . . . . Heat Transferred 1258 | . . . 1258 . . . . . Parts Sabotaged . | . . . . . . . . . Parts Stolen . | . . . . . . . . . Parts Stripped . | . . . . . . . . . Power Chain Reactions . | . . . . . . . . . Alert | -11 -10 -10 -9 -9 -9 -8 -8 -7 ------- Run | Yrd Mat Min Mat Min Exi Min Mat Fac Maximum Alert Level 1 | . . . . . . . 1 . Low Security (%) 99 | 100 100 100 100 100 . 100 98 100 Level 1 . | . . . . . . . 1 . Level 2 . | . . . . . . . . . Level 3 . | . . . . . . . . . Level 4 . | . . . . . . . . . Level 5 . | . . . . . . . . . High Security . | . . . . . . . . . Max Security . | . . . . . . . . . Peak Influence 206 | . 2 . 142 76 . 75 206 108 Initial 93 | . . . . 51 . . 11 93 Average 53 | . . . 67 51 . 28 70 78 Influence Increases 946 | . 2 . 302 75 . 130 325 112 Destroy 0b10 Robot/C 580 | . . . 220 60 . 60 200 40 Destroy 0b10 Robot/NC 10 | . . . 5 . . . . 5 Destroy Leader 154 | . . . 62 10 . 10 50 22 Successful Hack 7 | . 2 . . 5 . . . . Disable Machine 45 | . . . 15 . . 15 15 . Partial Spotted 15 | . . . . . . . 15 . Lose Combat Pursuer 135 | . . . . . . 45 45 45 Influence Decreases 911 | . 2 . 170 171 36 100 149 283 Entered New Map 249 | . . . . 81 36 . 19 113 Time Decay 572 | . 2 . 130 90 . 100 130 120 Lost Part 70 | . . . 40 . . . . 30 Lost Ally 20 | . . . . . . . . 20 Squads Dispatched 3 | . . . 1 . . . . 2 Investigation 1 | . . . . . . . . 1 Extermination . | . . . . . . . . . Reinforcement 2 | . . . 1 . . . . 1 Assault . | . . . . . . . . . Garrison . | . . . . . . . . . Intercept . | . . . . . . . . . Searches Triggered . | . . . . . . . . . Construction Impeded . | . . . . . . . . . Haulers Reinforced . | . . . . . . . . . Active Scanning Responses . | . . . . . . . . . Cargo Convoy Interrupts . | . . . . . . . . . Stealth | -11 -10 -10 -9 -9 -9 -8 -8 -7 --------- Run | Yrd Mat Min Mat Min Exi Min Mat Fac Distress Signals 4 | . . . 3 . . . 1 . Communications Jammed . | . . . . . . . . . Distress Signals . | . . . . . . . . . Times Spotted 79 | . . . 19 27 . 6 19 8 Peak Tracking Total 21 | . . . 5 21 . 3 9 2 Tactical Retreats 6 | . . . . . . 3 1 2 Traps | -11 -10 -10 -9 -9 -9 -8 -8 -7 ------- Run | Yrd Mat Min Mat Min Exi Min Mat Fac Traps Triggered 3 | . . . 1 . . . 1 1 Indirectly . | . . . . . . . . . Trap Hack Attempts . | . . . . . . . . . Triggered . | . . . . . . . . . Disarmed . | . . . . . . . . . Reprogrammed . | . . . . . . . . . Reused . | . . . . . . . . . Traps Extracted . | . . . . . . . . . Installed . | . . . . . . . . . Triggered . | . . . . . . . . . Machines | -11 -10 -10 -9 -9 -9 -8 -8 -7 ---------- Run | Yrd Mat Min Mat Min Exi Min Mat Fac Machines Disabled 3 | . . . 1 . . 1 1 . Max in Single Turn 1 | . . . 1 . . 1 1 . Machines Repaired . | . . . . . . . . . Machines Dismantled . | . . . . . . . . . Machines Sabotaged . | . . . . . . . . . Overloaded Fab Kills . | . . . . . . . . . Hacking | -11 -10 -10 -9 -9 -9 -8 -8 -7 --------- Run | Yrd Mat Min Mat Min Exi Min Mat Fac Machines Accessed 7 | . 1 1 . 1 1 . 2 1 Terminals 4 | . 1 . . 1 . . 2 . Fabricators . | . . . . . . . . . Repair Stations 1 | . . . . . . . . 1 Recycling Units . | . . . . . . . . . Scanalyzers . | . . . . . . . . . Garrison Access . | . . . . . . . . . Total Hacks 27 | . 5 1 . 1 9 . 10 1 Successful 24 | . 3 1 . 1 9 . 9 1 Failed 2 | . 2 . . . . . . . Catastrophic . | . . . . . . . . . Database Lockouts 1 | . . . . . . . 1 . Manual 10 | . . . . . . . 9 1 Terminals 16 | . 5 . . 1 . . 10 . Fabricators . | . . . . . . . . . Repair Stations 1 | . . . . . . . . 1 Recycling Units . | . . . . . . . . . Scanalyzers . | . . . . . . . . . Garrison Access . | . . . . . . . . . Terminal Hacks 23 | . 3 1 . 1 9 . 9 . Record 12 | . 3 . . . 9 . . . Robot Analysis 4 | . . . . . . . 4 . Open Door 1 | . . 1 . . . . . . Level Access Points 1 | . . . . . . . 1 . Branch Access Points 1 | . . . . . . . 1 . Emergency Access Points 1 | . . . . . . . 1 . Machine Index 1 | . . . . . . . 1 . Hauler Manifests 1 | . . . . . . . 1 . Zone Layout 1 | . . . . 1 . . . . Fabricator Hacks . | . . . . . . . . . Repair Station Hacks . | . . . . . . . . . Recycling Unit Hacks . | . . . . . . . . . Scanalyzer . | . . . . . . . . . Garrison Access Hacks . | . . . . . . . . . Unauthorized Hacks 1 | . . . . . . . . 1 Terminals . | . . . . . . . . . Fabricators . | . . . . . . . . . Repair Stations 1 | . . . . . . . . 1 Patch 1 | . . . . . . . . 1 Recycling Units . | . . . . . . . . . Scanalyzers . | . . . . . . . . . Garrison Access . | . . . . . . . . . Data Cores Recovered . | . . . . . . . . . Used . | . . . . . . . . . Hacking Detections 2 | . 1 . . . . . 1 . Full Trace Events 1 | . 1 . . . . . . . Feedback Events . | . . . . . . . . . Feedback Blocked . | . . . . . . . . . Robot Schematics Acquired . | . . . . . . . . . Robots Built . | . . . . . . . . . Authchips . | . . . . . . . . . Time . | . . . . . . . . . Total Robot Build Rating . | . . . . . . . . . Part Schematics Acquired . | . . . . . . . . . Parts Built . | . . . . . . . . . Authchips . | . . . . . . . . . Time . | . . . . . . . . . Total Part Build Rating . | . . . . . . . . . Parts Repaired . | . . . . . . . . . Time . | . . . . . . . . . Parts Recycled . | . . . . . . . . . Recycled Matter . | . . . . . . . . . Retrieved Matter . | . . . . . . . . . Retrieved Components . | . . . . . . . . . Parts Scanalyzed . | . . . . . . . . . Part Schematics Acquired . | . . . . . . . . . Parts Damaged . | . . . . . . . . . Bothacking | -11 -10 -10 -9 -9 -9 -8 -8 -7 ------------ Run | Yrd Mat Min Mat Min Exi Min Mat Fac Used RIF Installer . | . . . . . . . . . Robots Hacked 1 | . . . 1 . . . . . Non-combat . | . . . . . . . . . Combat 1 | . . . 1 . . . . . Robot Hacks Applied 1 | . . . 1 . . . . . find_shortcuts 1 | . . . 1 . . . . . Relay Couplers Released . | . . . . . . . . . Fabnet Peak Effective % . | . . . . . . . . . Robots Rewired . | . . . . . . . . . Allies Hacked . | . . . . . . . . . Hacks Repelled . | . . . . . . . . . Allies | -11 -10 -10 -9 -9 -9 -8 -8 -7 -------- Run | Yrd Mat Min Mat Min Exi Min Mat Fac Total Allies . | . . . . . . . . . Largest Group . | . . . . . . . . . Highest-Rated Group . | . . . . . . . . . Highest-Rated Ally . | . . . . . . . . . Total Orders . | . . . . . . . . . Ally Attacks 6 | . . . . . . . . 6 Total Damage 295 | . . . . . . . . 295 Kills . | . . . . . . . . . Allies Corrupted . | . . . . . . . . . Allies Melted . | . . . . . . . . . Turrets Deployed 1 | . . . . . . . . 1 Intel | -11 -10 -10 -9 -9 -9 -8 -8 -7 ------- Run | Yrd Mat Min Mat Min Exi Min Mat Fac Active Infowar (turns) . | . . . . . . . . . Robot Analysis Total 7 | . . 1 1 1 . . 4 . Derelict Logs Recovered 4 | . . 2 . 2 . . . . Drone Launches . | . . . . . . . . . Drone Recoveries . | . . . . . . . . . Exploration | -11 -10 -10 -9 -9 -9 -8 -8 -7 ------------- Run | Yrd Mat Min Mat Min Exi Min Mat Fac Turns Passed 1609 | 9 76 46 295 188 162 313 277 243 Spaces Moved 1788 | 18 151 86 119 160 298 391 297 268 Core 511 | 18 151 81 2 5 254 . . . Treads . | . . . . . . . . . Legs 107 | . . 5 102 . . . . . Wheels . | . . . . . . . . . Hover 1146 | . . . . 146 44 391 297 268 Flight 24 | . . . 15 9 . . . . Fastest Speed 37 | 50 50 50 37 37 50 80 80 80 Average Speed 71 | 50 50 54 108 58 54 80 80 80 Slowest Speed 120 | 50 50 120 120 60 80 80 80 80 Overloaded Moves . | . . . . . . . . . Propulsion Burnouts . | . . . . . . . . . Robots Hopped . | . . . . . . . . . Potential Cave-ins . | . . . . . . . . . Cave-ins Triggered . | . . . . . . . . . Exploration Rate (%) 36 | 4 30 22 17 41 82 87 35 13 Regions Visited 8 Branch Regions 4 Pre-discovered Areas . | . . . . . . . . . Known Exits Taken 3 | . . . . 1 . 1 1 . Unknown Exits Taken 5 | 1 1 1 1 . 1 . . . Scrap Searched 2 | . . . . 1 . 1 . . Spaces Dug . | . . . . . . . . . Terrain Destroyed . | . . . . . . . . . Melee . | . . . . . . . . . Projectile . | . . . . . . . . . AOE . | . . . . . . . . . Terrain Rammed . | . . . . . . . . . Walls Destroyed . | . . . . . . . . . Machines Disabled . | . . . . . . . . . Actions | -11 -10 -10 -9 -9 -9 -8 -8 -7 --------- Run | Yrd Mat Min Mat Min Exi Min Mat Fac Total 2037 | 17 150 85 233 232 297 390 336 297 Wait 170 | . . . 62 51 . . 40 17 Move 1780 | 17 150 85 118 159 297 390 296 268 Hop . | . . . . . . . . . Pick Up . | . . . . . . . . . Fast Attach . | . . . . . . . . . Attach . | . . . . . . . . . Detach . | . . . . . . . . . Swap . | . . . . . . . . . Drop 1 | . . . . . . . . 1 Fire 73 | . . . 51 22 . . . . Melee . | . . . . . . . . . Ram . | . . . . . . . . . Kick 2 | . . . 2 . . . . . Crush . | . . . . . . . . . Escape Stasis 11 | . . . . . . . . 11 Rewire . | . . . . . . . . . Trap . | . . . . . . . . . Miscellaneous . | . . . . . . . . . Route ------- -11/Scrapyard -10/Materials (discovered 2 exits: [*Mat] / *Min) -10/Mines -9/Materials (discovered 2 exits: Mat / *Min) -9/Mines -9/Exiles -8/Mines -8/Materials (discovered 3 exits: *Fac x3) -7/Factory (discovered 1 exit: [*Fac]) History --------- Turn | Location | Event 3 | -11/Scrapyard | Discovered new exit (range 15) 10 | -11/Scrapyard | Entered Materials 33 | -10/Materials | Discovered new exit (range 7) 79 | -10/Materials | Discovered new exit (range 10) 86 | -10/Materials | Entered Mines 98 | -10/Mines | Learned 2 Materials zone layouts 110 | -10/Mines | Learned 4 Materials zone layouts 122 | -10/Mines | Discovered new exit (range 5) 126 | -10/Mines | Met a Derelict shopkeep closing up shop 132 | -10/Mines | Entered Materials 133 | -9/Materials | Identified exit to Materials 388 | -9/Materials | Discovered new exit (range 15) 414 | -9/Materials | Core integrity fell below 50% 427 | -9/Materials | Entered Mines 428 | -9/Mines | Assembled infested the area 451 | -9/Mines | Lost 3 parts (2n1w) 496 | -9/Mines | Met 8R-AWN 560 | -9/Mines | Identified exit to Exiles 615 | -9/Mines | Entered Exiles 627 | -9/Exiles | Welcomed by 8R-AWN 636 | -9/Exiles | Met EX-HEX 651 | -9/Exiles | Met EX-BIN 689 | -9/Exiles | Visited The Gauntlet 737 | -9/Exiles | Met EX-DEC 743 | -9/Exiles | Took control of EX-DEC (ally) 768 | -9/Exiles | Discovered new exit (range 14) 777 | -9/Exiles | Left Exiles lab with Deploy-a-Sentry 777 | -9/Exiles | Entered Mines 796 | -8/Mines | Found a Scrap Suit stashed away for nefarious purposes 1083 | -8/Mines | Discovered exit to Materials (range 7) 1090 | -8/Mines | Entered Materials 1091 | -8/Materials | Identified exit to Factory 1341 | -8/Materials | Central database locked down 1367 | -8/Materials | Entered Factory 1408 | -7/Factory | Discovered new exit (range 10) 1584 | -7/Factory | DAS Turret deployed 1610 | -7/Factory | Self-destructed Last Messages --------------- 01578_ Penetrated by Slug. 01579_ Visual Processing Unit fried. 01579_ W-25 Informer destroyed. 01582_ H-61 Shepherd calls for reinforcements. 01582_ ALERT: Hostile activity reported, dispatching reinforcements to area. 01582_ Penetrated by Slug. 01582_ AWS/EX-DEC destroyed. 01582_ Imp. Target Analyzer destroyed. 01582_ Critical hit (Blast). 01582_ Knocked back. 01583_ Dropped Deploy-a-Sentry. 01584_ DAS Turret deployed. 01584_ DAS Turret knocked back. 01586_ H-61 Shepherd misfires. 01588_ DAS Turret knocked back. 01594_ Nuclear Reactor explodes. 01596_ Slug penetrates DAS Turret. 01596_ DAS Turret knocked back. 01599_ DAS Turret destroyed. Map ----- +----------------------------------------------------+ | ??????????????????????????????????????# ?????? | | ????????????????????????????????????### ####?? | | ??????????????????????????? ???????# # | | ?????????????????????????? !####### # ! | | ?????????????????????????? # | | ???????????????????????????? # | | ?????????????????????????" ?? # "" | | ??????????????????????? ???? # "" | | ????????????????????? ?????? # "" | | ?????????????????????? ????????# # " | | ?????????????????????? ???????# # " | | ??????????????????????# #????????# ## | | ??????????????????????# ^ #######??# "###+ | | ??????????????????????# g #= #??# % | | ??????????????????????/g # #??# | | ??????????????????????# # """ #??# % | | ??????????????????????# # """ #??# % % | | ??????????????????????# # """ #??# % | | ??????????????????????# # #### | | ??????????????????????# # """ + | | ??????????????????????# # """ #######+######"" | | ??????????????????????# + """ #????????????# | | ??????????????????????# # #????????????#! | | ??????????????????????# # [ #????????????# | | ??????????????????????# # =#????????????# | | ????????????????#########c#########????????????# | | ????????????????# #????????????# | | ????????????????# """ """ """ """ #????????????# | | ????????????????# """ """ """ ""???????????????# | | ????????????????# """ """ """ """??????????????# | | ????????????????# ??????????????? | | ????????????????# [ !????????????????? | | ????????????????# ???????????????? | | ????????????????################?????????????????# | | | | | | | | | | | | | | | | | | | | | | | | | | | | | | | | | +----------------------------------------------------+ Best States ------------- Heat Dissipation 51 Energy Generation 23 Energy Capacity 235 Matter Stores 100 Matter Capacity 100 Sight Range 16 Terrain Scan Density 10 Resistance: EM 90 Evasion (%) 62 Launcher Accuracy 40 Target Analysis 6 Core Analysis 8 Armor Integrity Analysis 40 Offensive Hacking 70 Defensive Hacking 56 Item Schematics ----------------- None Robot Schematics ------------------ None Fabricated ------------ Nothing Repaired ---------- Nothing Alien Tech Used ----------------- None Achievements -------------- None Challenges ------------ None Polymind | -11 -10 -10 -9 -9 -9 -8 -8 -7 ---------- Run | Yrd Mat Min Mat Min Exi Min Mat Fac Hosts 4 | . . 1 1 1 1 . . . Combat Hostiles 2 | . . . 1 1 . . . . Allies 2 | . . 1 . . 1 . . . Unique Host Classes 4 | . . 1 1 1 1 . . . Average Host Suspicion 80 | . . . 91 67 . 74 90 84 Unsuspicious Activity 183 | . . 7 . 160 16 . . . Returns to Shadow 1 | . . . . 1 . . . . Fuzzy Dispatches . | . . . . . . . . . Protomatter Created 253 | . . . 59 100 . . 94 . Used 69 | . . 14 6 16 33 . . . Decayed 44 | . . . 20 24 . . . . Highest Spend 33 | . . 14 6 16 33 . . . Top 5 Hosts by Kills: EX-DEC (-9/Exiles: 15) M3-7MU(g) (-10/Mines: 11) as-45395 (-9/Mines: 3) Game ------ Seed ComponentAdvancedCoupler Manual? 0 Play Time 00:17:34 Cumulative 189.0 hours Start 2025.09.27 @ 17:57:39 End 2025.09.29 @ 14:41:16 Sessions 5 Manual Loads 0 Difficulty Rogue Special Mode Winter2022/Polymind Game No. 299 Rogue 296 Adventurer 3 Explorer 0 Win Type - Total 1 Types 1/0/0/0/0/0/0/0/0/0 Lore% 64 Gallery% 59 Achievement% 47 Wizard Run 0 Options --------- Layout 0 ASCII 0 Keyboard 0 Movement Mouse Keybinds 0 Fullscreen 2 Font 18/SmallcapsGlow Map View 76x50 Zoom Use 0% Tactical HUD 1 Map Filters NONE Filters NONE Steam 1 RUN: 75cb1144-9626-4cf4-9154-ff20ea228934